Cogmind - Beta 16.1 @@@ ROGUE MODE // 2026.03.31 @ 19:37:10 Player: konomiyu Result: Destroyed by G-47 Trooper with Particle Gun Performance ------------- Evolutions (2) 1000 Regions Visited (5) 1000 Robots Destroyed (113) 565 Value Destroyed (2514) 2514 Prototype IDs (11) 220 Alien Tech Used (0) 0 Bonus (256) 256 TOTAL SCORE: 5555 Bonus ------- Follower Combat Kills 56 Entered Garrisons 200 Cogmind --------- Core Integrity 0/550 Matter 260/300 Energy 33/125 System Corruption 0% Temperature Hot (215) Movement Core (450) Ox8 Location -8/Garrison Parts ------- > --- POWER (1) -------- Light Ion Engine > --- PROPULSION (2) --- (None) > --- UTILITY (6) ------ Heat Sink Large Storage Unit Improved Terrain Scan Processor > --- WEAPON (2) ------- Particle Gun > --- INVENTORY (15) --- Improved VTOL Module Heat Sink Medium Storage Unit Improved Terrain Scanner Hacking Suite Recalibrator Improved Datajack Heavy Mace Peak State ------------ > --- POWER ------------ Deuterium Engine > --- PROPULSION ------- Light Treads Improved VTOL Module > --- UTILITY ---------- Improved Heat Sink Large Storage Unit Improved Terrain Scanner Improved Terrain Scan Processor ECM Suite Hacking Suite > --- WEAPON ----------- Spread Laser Makeshift Laser > --- INVENTORY -------- Light Ion Engine Light Treads Light Treads Wheel Heat Sink Medium Storage Unit Medium Armor Plating Shield Generator Recalibrator Shock Rifle Beam Rifle Improved Medium Laser Grenade Launcher Improved Datajack Heavy Mace [Rating: 30] Favorites ----------- Power Light Ion Engine Engine Light Ion Engine Power Core Light Nuclear Core Propulsion Light Treads Treads Light Treads Leg Aluminum Leg Wheel Wheel Flight Unit Improved Flight Unit Utility Large Storage Unit Device ECM Suite Storage Large Storage Unit Processor Improved Terrain Scan Processor Hackware Hacking Suite Protection Light Armor Plating Weapon EM Pulse Gun Energy Gun EM Pulse Gun Energy Cannon EM Pulse Cannon Ballistic Gun Light Assault Rifle Launcher Grenade Launcher Special Weapon Mining Laser Impact Weapon Heavy Mace Special Melee Weapon Improved Datajack Build | -11 -10 -10 -9 -8 -8 ------- Run | Yrd Mat Min Mat Mat Gar Slots Evolved 4 | . . . 2 2 . Power . | . . . . . . Propulsion . | . . . . . . Utility 4 | . . . 2 2 . Weapon . | . . . . . . Parts Attached 80 | 7 5 13 21 19 15 Power 14 | 1 . 3 3 3 4 Engine 13 | 1 . 3 3 2 4 Core 1 | . . . . 1 . Reactor . | . . . . . . Propulsion 18 | 2 . 2 6 5 3 Treads 14 | 2 . 1 5 4 2 Leg 1 | . . 1 . . . Wheel 1 | . . . . . 1 Hover . | . . . . . . Flight 2 | . . . 1 1 . Utility 23 | 2 2 2 5 10 2 Device 14 | 1 1 2 3 6 1 Storage 2 | 1 1 . . . . Processor 1 | . . . . 1 . Hackware 2 | . . . 1 1 . Protection 4 | . . . 1 2 1 Artifact . | . . . . . . Weapon 25 | 2 3 6 7 1 6 Energy Gun 12 | 1 2 1 4 1 3 Energy Cannon 1 | . . . . . 1 Ballistic Gun 4 | 1 . 3 . . . Ballistic Cannon . | . . . . . . Launcher 3 | . . 1 1 . 1 Special Weapon 2 | . 1 . 1 . . Impact Weapon 1 | . . . 1 . . Slashing Weapon . | . . . . . . Piercing Weapon . | . . . . . . Special Melee Weapon 2 | . . 1 . . 1 Unidentified Prototypes 4 | . . . 3 1 . Parts Lost 42 | . . 8 4 8 22 Power 10 | . . 3 . 2 5 Propulsion 10 | . . 1 2 2 5 Utility 11 | . . 1 2 2 6 Weapon 11 | . . 3 . 2 6 Highest Loss Streak 13 | . . 5 1 2 13 To Critical Strikes 1 | . . 1 . . . Average Backups 13 | 4 9 14 14 14 12 Power 1 | . 1 . 1 1 1 Propulsion 2 | 2 3 2 2 2 2 Utility 4 | . 2 6 4 5 5 Weapon 4 | 1 3 4 5 4 2 Tool/Special . | . . . . . . Unused Backups 13 | . 3 2 5 . 3 Power 1 | . . . 1 . . Propulsion 1 | . . . 1 . . Utility 4 | . . 1 . . 3 Weapon 7 | . 3 1 3 . . Tool/Special . | . . . . . . Average Slot Usage (%) 95 | . 100 94 93 98 87 Engine 9 | . 14 12 10 6 6 Treads 21 | . 28 27 21 17 7 Device 19 | . 14 11 19 26 17 Storage 11 | . 14 14 11 9 9 Processor 2 | . . . . 6 9 Hackware 4 | . . . 4 8 8 Protection 2 | . . . 2 1 6 Energy Gun 18 | . 27 9 20 15 5 Ballistic Gun 1 | . . 17 . . . Impact Weapon 1 | . . . 1 2 5 Peak Build Rating 30 | 7 11 11 28 30 26 Average Rating 18 | 5 8 9 19 27 22 On Entrance 12 | . 7 9 11 22 26 Avg Prop Armor Cover (%) 11 | . . . 11 11 . Naked Turns . | . . . . . . Heaviest Build 45 | 12 28 28 42 44 45 Greatest Support 49 | 40 40 40 43 49 40 Greatest Overweight (x) 3 | . . 2 1 2 3 Average Overweight (x) . | . . . . . 1 Largest Inventory Capacity 15 | 8 15 15 15 15 15 Average Capacity 14 | 7 12 15 15 15 15 Most Carried 15 | 6 15 15 15 15 14 Average Carried 13 | 4 9 14 14 14 12 Final Capacity 15 | 8 15 15 15 15 15 Final Carried 15 | 6 15 15 15 14 8 Class Distribution -------------------- 59% | Scavenger-Mutant 40% | Mutant Dominant Class ---------------- Mutant | -10/Materials Scavenger-Mutant | -10/Mines Scavenger-Mutant | -9/Materials Scavenger-Mutant | -8/Materials Scavenger-Mutant | -8/Garrison Resources | -11 -10 -10 -9 -8 -8 ----------- Run | Yrd Mat Min Mat Mat Gar Matter Collected 1636 | 266 82 211 422 386 269 Remotely . | . . . . . . Salvage Created 3521 | 155 575 215 1171 1154 251 Parts 207 | 11 22 30 69 57 18 Haulers Intercepted 11 | . 2 . 5 4 . Recyclers Shooed 5 | 1 3 . 1 . . Parts Field Recycled . | . . . . . . Retrieved Matter . | . . . . . . Parts Self-Destructed . | . . . . . . Prevented . | . . . . . . Parts Restored . | . . . . . . Kills | -11 -10 -10 -9 -8 -8 ------- Run | Yrd Mat Min Mat Mat Gar Combat Hostiles Destroyed 76 | . 2 12 28 25 9 Guns 62 | . 1 7 24 24 6 AOE 12 | . 1 5 4 . 2 Classes Destroyed 12 | 2 6 3 . 1 . Worker 1 | . . 1 . . . Builder 1 | . 1 . . . . Tunneler 8 | 3 1 1 2 1 . Hauler 11 | . 2 . 5 4 . Recycler 7 | 1 4 . 1 1 . Mechanic 1 | . 1 . . . . Operator 4 | . 2 . 1 1 . Watcher 4 | . 1 . 2 1 . Swarmer 35 | . . 10 10 12 3 Grunt 22 | . 2 . 9 8 3 Sentry 18 | . . 2 9 4 3 Hunter 1 | . . . . 1 . Best Kill Streak 8 | 3 4 6 4 8 3 Combat Bots Only 6 | . 2 6 4 4 3 Max Kills in Single Turn 2 | 1 1 2 2 2 2 Gunslinging 1 | . . . . 1 . Exploded 2 | . 1 2 2 . 2 Melee . | . . . . . . Uniques/NPCs Destroyed . | . . . . . . Combat | -11 -10 -10 -9 -8 -8 -------- Run | Yrd Mat Min Mat Mat Gar Hostile Shots Fired 459 | . 13 83 83 132 148 Missed 102 | . 4 14 17 36 31 Hits 357 | . 9 69 66 96 117 Projectile 357 | . 9 69 66 96 117 AOE 10 | . . . . . 10 Critical Strikes 16 | . . 4 4 1 7 Damage Taken 5033 | . 131 794 874 1218 2016 Core 937 | . 14 200 165 96 462 Absorbed by Shields 105 | . . . . 30 75 Regen/Repaired (Parts) 197 | . 2 . 44 151 . Core Remaining (%) 57 | 100 . 14 58 . . Volleys Fired 301 | 7 41 31 103 85 34 Largest 2 | 2 2 2 2 2 2 Hottest 140 | 60 100 80 140 140 121 Shots Fired 549 | 13 79 53 192 168 44 Gun 521 | 13 76 50 186 168 28 Cannon 7 | . . . . . 7 Launcher 15 | . . 3 3 . 9 Special 6 | . 3 . 3 . . Kinetic 32 | 6 . 26 . . . Thermal 400 | 7 3 16 189 168 17 Explosive 15 | . . 3 3 . 9 Electromagnetic 102 | . 76 8 . . 18 Robot Hit Streak 17 | 8 6 11 17 13 6 Robot Miss Streak 11 | 2 4 2 11 6 2 Penetration Max . | . . . . . . Secondary Targets 7 | . . 1 2 4 . Max Gunslinging Chain 1 | . . 1 1 1 . Shots Hit Robots 382 | 9 31 35 150 123 34 Core Hits 267 | 5 20 22 132 67 21 Critical Kills 1 | . . 1 . . . Critical Parts Destroyed . | . . . . . . Critical Strikes 25 | . 3 1 4 17 . Burn 21 | . . . 4 17 . Destroy 1 | . . 1 . . . Corrupt 3 | . 3 . . . . Melee Attacks 57 | . . 1 14 25 17 Impact 50 | . . . 14 25 11 Slashing . | . . . . . . Piercing . | . . . . . . Sneak Attacks 7 | . . 1 1 . 5 Combat Hostiles . | . . . . . . Follow-up Attacks . | . . . . . . Damage Inflicted 7184 | 111 638 715 2720 2139 861 Guns 5861 | 111 445 349 2546 2080 330 Cannons 89 | . . . . . 89 Explosions 1116 | . 193 366 115 . 442 Melee 118 | . . . 59 59 . Ramming . | . . . . . . Kinetic 174 | 47 . 127 . . . Thermal 5348 | 64 193 259 2546 2080 206 Explosive 824 | . . 267 115 . 442 Electromagnetic 720 | . 445 62 . . 213 Impact 118 | . . . 59 59 . Slashing . | . . . . . . Piercing . | . . . . . . Highest Corruption . | . . . . . . Average Corruption . | . . . . . . Corruption Purged . | . . . . . . Corruption Blocked . | . . . . . . Overload Shots . | . . . . . . Overflow Damage 98 | . 28 . 50 . 20 Projectiles . | . . . . . . Explosions 69 | . 28 . 21 . 20 Melee 29 | . . . 29 . . Knockbacks 1 | . . . 1 . . Impact 1 | . . . 1 . . Kinetic . | . . . . . . Secondary . | . . . . . . Self-Inflicted Damage 118 | . 8 . 110 . . Shots 2 | . 1 . 1 . . Rammed . | . . . . . . Targets Rammed . | . . . . . . Kicked . | . . . . . . Crushed . | . . . . . . Highest Temperature 384 | 20 228 79 384 276 241 Average Temperature 68 | 15 48 27 75 74 79 Received Heat Transfer 1713 | . 72 183 276 391 791 Effects 5 | . . . 5 . . Energy Bleed 2 | . . . 2 . . Interference 3 | . . . 3 . . Siege Activations . | . . . . . . Martial Activations . | . . . . . . Shielding Activations . | . . . . . . Robots Disrupted . | . . . . . . Combat Hostiles . | . . . . . . Robots Corrupted 1 | . 1 . . . . Combat Hostiles . | . . . . . . Parts Fried 5 | . 3 . . . 2 Impact Corruptions 1 | . . . 1 . . Robots Melted 1 | . . . . 1 . Combat Hostiles 1 | . . . . 1 . Parts Melted 27 | . . 2 4 21 . Heat Transferred 10952 | 150 200 499 4227 5446 430 Parts Sabotaged . | . . . . . . Parts Stolen . | . . . . . . Parts Stripped . | . . . . . . Power Chain Reactions 3 | . 2 1 . . . Alert | -11 -10 -10 -9 -8 -8 ------- Run | Yrd Mat Min Mat Mat Gar Maximum Alert Level 1 | . . . 1 1 1 Low Security (%) 80 | 100 100 100 73 84 31 Level 1 19 | . . . 26 15 68 Level 2 . | . . . . . . Level 3 . | . . . . . . Level 4 . | . . . . . . Level 5 . | . . . . . . High Security . | . . . . . . Max Security . | . . . . . . Peak Influence 386 | 10 90 178 297 252 386 Initial 141 | . . . 64 . 141 Average 86 | 1 13 49 105 72 254 Influence Increases 2801 | 20 207 535 901 723 415 Destroy 0b10 Robot/C 1680 | . 40 340 560 500 240 Destroy 0b10 Robot/NC 185 | 20 60 10 55 40 . Destroy Leader 350 | . 16 50 164 110 10 Allied During Kill 16 | . . 9 . . 7 Successful Hack 85 | . 15 . 29 29 12 Disable Machine 135 | . 45 45 30 15 . Anti-Garrison Action 50 | . . . . . 50 Destroy Structure 210 | . 31 36 63 29 51 Lose Combat Pursuer 90 | . . 45 . . 45 Influence Decreases 2525 | 20 207 369 1067 505 357 Entered New Map 179 | . . . 102 . 77 Time Decay 1496 | 20 207 269 612 388 . Lost Part 373 | . . 80 40 33 220 Lost Ally 100 | . . 20 20 . 60 Purge Threat 377 | . . . 293 84 . Squads Dispatched 5 | . 3 . 1 1 . Investigation 2 | . 1 . . 1 . Extermination . | . . . . . . Reinforcement 3 | . 2 . 1 . . Assault . | . . . . . . Garrison . | . . . . . . Intercept . | . . . . . . Searches Triggered . | . . . . . . Construction Impeded . | . . . . . . Haulers Reinforced . | . . . . . . Active Scanning Responses . | . . . . . . Cargo Convoy Interrupts . | . . . . . . Stealth | -11 -10 -10 -9 -8 -8 --------- Run | Yrd Mat Min Mat Mat Gar Distress Signals 19 | . 2 . 9 8 . Communications Jammed . | . . . . . . Distress Signals . | . . . . . . Times Spotted 187 | . 6 16 79 65 21 Peak Tracking Total 7 | . 2 5 7 6 7 Tactical Retreats 35 | . . 2 14 15 4 ECM-based Alert Blocks 56 | . . . 25 27 4 Traps | -11 -10 -10 -9 -8 -8 ------- Run | Yrd Mat Min Mat Mat Gar Traps Triggered 7 | . . . . 1 6 Indirectly . | . . . . . . Trap Hack Attempts . | . . . . . . Triggered . | . . . . . . Disarmed . | . . . . . . Reprogrammed . | . . . . . . Reused . | . . . . . . Traps Extracted . | . . . . . . Installed . | . . . . . . Triggered . | . . . . . . Machines | -11 -10 -10 -9 -8 -8 ---------- Run | Yrd Mat Min Mat Mat Gar Machines Disabled 10 | . 4 3 2 1 . Max in Single Turn 2 | . 1 2 2 1 . Machines Repaired . | . . . . . . Machines Dismantled . | . . . . . . Machines Sabotaged . | . . . . . . Overloaded Fab Kills . | . . . . . . Hacking | -11 -10 -10 -9 -8 -8 --------- Run | Yrd Mat Min Mat Mat Gar Machines Accessed 31 | . 7 1 11 10 2 Terminals 23 | . 5 . 8 8 2 Fabricators . | . . . . . . Repair Stations 3 | . 1 . 1 1 . Recycling Units 2 | . 1 . 1 . . Scanalyzers 1 | . . . 1 . . Garrison Access 1 | . . . . 1 . Total Hacks 94 | . 19 1 37 32 5 Successful 44 | . 10 1 18 14 1 Failed 48 | . 8 . 18 18 4 Catastrophic 8 | . 1 . 3 4 . Database Lockouts 2 | . 1 . 1 . . Manual 40 | . 9 . 18 13 . Terminals 67 | . 10 . 26 26 5 Fabricators . | . . . . . . Repair Stations 14 | . 6 . 5 3 . Recycling Units 4 | . 3 . 1 . . Scanalyzers 5 | . . . 5 . . Garrison Access 3 | . . . . 3 . Terminal Hacks 24 | . 3 1 10 9 1 Record 1 | . . . 1 . . Robot Analysis 4 | . 2 . 1 1 . Prototype ID Bank 3 | . . . 1 2 . Open Door 1 | . . 1 . . . Emergency Access Points 1 | . . . . 1 . Terminal Index 2 | . . . 1 1 . Scanalyzer Index 1 | . . . 1 . . Unreport Threat 3 | . . . 2 1 . Dispatch Records 1 | . . . 1 . . Maintenance Status 1 | . . . 1 . . Security Status 1 | . . . . 1 . Patrol Status 1 | . . . . 1 . Hauler Manifests 1 | . 1 . . . . Registered Components 2 | . . . 1 1 . Garrison Registry 1 | . . . . . 1 Fabricator Hacks . | . . . . . . Repair Station Hacks 9 | . 4 . 2 3 . Scan Component 5 | . 2 . 1 2 . Repair 4 | . 2 . 1 1 . Recycling Unit Hacks 3 | . 2 . 1 . . Report Inventory 2 | . 1 . 1 . . Retrieve Components 1 | . 1 . . . . Scanalyzer 4 | . . . 4 . . Insert Component 3 | . . . 3 . . Analyze 1 | . . . 1 . . Garrison Access Hacks 1 | . . . . 1 . Unlock Access 1 | . . . . 1 . Unauthorized Hacks 3 | . 1 . 1 1 . Terminals 3 | . 1 . 1 1 . Operators 3 | . 1 . 1 1 . Fabricators . | . . . . . . Repair Stations . | . . . . . . Recycling Units . | . . . . . . Scanalyzers . | . . . . . . Garrison Access . | . . . . . . Data Cores Recovered . | . . . . . . Used . | . . . . . . Hacking Detections 23 | . 3 . 9 9 2 Full Trace Events 5 | . . . 1 3 1 Feedback Events . | . . . . . . Feedback Blocked . | . . . . . . Robot Schematics Acquired . | . . . . . . Robots Built . | . . . . . . Authchips . | . . . . . . Time . | . . . . . . Total Robot Build Rating . | . . . . . . Part Schematics Acquired 1 | . . . 1 . . Parts Built . | . . . . . . Authchips . | . . . . . . Time . | . . . . . . Total Part Build Rating . | . . . . . . Part Studies Acquired . | . . . . . . Parts Repaired 4 | . 2 . 1 1 . Time 153 | . 89 . 32 32 . Parts Recycled . | . . . . . . Recycled Matter . | . . . . . . Retrieved Matter . | . . . . . . Retrieved Components 9 | . 9 . . . . Parts Scanalyzed 1 | . . . 1 . . Part Schematics Acquired 1 | . . . 1 . . Parts Damaged . | . . . . . . Bothacking | -11 -10 -10 -9 -8 -8 ------------ Run | Yrd Mat Min Mat Mat Gar Used RIF Installer . | . . . . . . Robots Hacked 1 | . . 1 . . . Non-combat . | . . . . . . Combat 1 | . . 1 . . . Robot Hacks Applied 1 | . . 1 . . . parse_system 1 | . . 1 . . . Relay Couplers Released . | . . . . . . Fabnet Peak Effective % . | . . . . . . Robots Rewired 3 | . . . . . 3 Allies Hacked . | . . . . . . Hacks Repelled . | . . . . . . Allies | -11 -10 -10 -9 -8 -8 -------- Run | Yrd Mat Min Mat Mat Gar Total Allies 5 | . . 2 . . 3 Largest Group 3 | . . 2 1 . 3 Highest-Rated Group 39 | . . 39 31 . 30 Highest-Rated Ally 31 | . . 31 31 . 10 Total Orders . | . . . . . . Ally Attacks 25 | . . 15 1 . 9 Total Damage 510 | . . 328 22 . 160 Kills 8 | . . 5 . . 3 Allies Corrupted . | . . . . . . Allies Melted . | . . . . . . Intel | -11 -10 -10 -9 -8 -8 ------- Run | Yrd Mat Min Mat Mat Gar Active Infowar (turns) 9218 | 24 1792 740 3589 2759 314 Terrain 2271 | . . . . 2264 7 Seismic 4657 | 24 1792 686 1170 857 128 ECM 6645 | . . 54 3526 2751 314 Robot Analysis Total 4 | . 2 . 1 1 . Derelict Logs Recovered 1 | . . 1 . . . Drone Launches . | . . . . . . Drone Recoveries . | . . . . . . Exploration | -11 -10 -10 -9 -8 -8 ------------- Run | Yrd Mat Min Mat Mat Gar Turns Passed 10778 | 139 2171 927 3763 2759 1019 Spaces Moved 5017 | 65 972 508 1783 1162 527 Core 1 | 1 . . . . . Treads 4673 | 64 972 506 1783 1162 186 Legs 2 | . . 2 . . . Wheels 341 | . . . . . 341 Hover . | . . . . . . Flight . | . . . . . . Fastest Speed 50 | 50 160 160 160 152 110 Average Speed 163 | 158 160 160 164 172 147 Slowest Speed 320 | 160 160 260 240 320 240 Overloaded Moves . | . . . . . . Propulsion Burnouts . | . . . . . . Robots Hopped . | . . . . . . Potential Cave-ins . | . . . . . . Cave-ins Triggered . | . . . . . . Exploration Rate (%) 65 | 4 99 80 88 72 52 Regions Visited 5 Branch Regions 1 Pre-discovered Areas . | . . . . . . Known Exits Taken 2 | . . . 1 1 . Unknown Exits Taken 3 | 1 1 1 . . . Scrap Searched 2 | . . 2 . . . Spaces Dug 69 | . 3 13 15 22 16 Terrain Destroyed 176 | . 29 25 61 22 39 Melee 39 | . . . 12 22 5 Projectile 6 | . 3 . 3 . . AOE 131 | . 26 25 46 . 34 Terrain Rammed . | . . . . . . Walls Destroyed . | . . . . . . Machines Disabled . | . . . . . . Actions | -11 -10 -10 -9 -8 -8 --------- Run | Yrd Mat Min Mat Mat Gar Total 6935 | 85 1503 568 2389 1693 697 Wait 1292 | . 465 . 416 361 50 Move 5012 | 64 971 507 1782 1161 527 Hop . | . . . . . . Pick Up 59 | 7 15 6 15 12 4 Fast Attach 21 | 6 . 4 4 3 4 Attach 29 | 1 . 4 4 8 12 Detach . | . . . . . . Swap 89 | . 6 9 35 28 11 Drop 37 | . 5 6 16 10 . Fire 301 | 7 41 31 103 85 34 Melee 57 | . . 1 14 25 17 Ram . | . . . . . . Kick . | . . . . . . Crush . | . . . . . . Escape Stasis 38 | . . . . . 38 Rewire . | . . . . . . Trap . | . . . . . . Miscellaneous . | . . . . . . Route ------- -11/Scrapyard -10/Materials (discovered 5 exits: *Mat x3 / *Min / [*Sub]) -10/Mines (discovered 2 exits: *Mat x2) -9/Materials (discovered 6 exits: *Mat x3 / [*Min x2] / [*Sto]) -8/Materials (discovered 3 exits: [*Fac x2] / Gar) -8/Garrison (discovered 4 exits: [*Mat x4]) History --------- Turn | Location | Event 29 | -11/Scrapyard | Discovered new exit (range 15) 140 | -11/Scrapyard | Entered Materials 141 | -10/Materials | Met a group of wandering Federalists 305 | -10/Materials | Build established: Mutant 751 | -10/Materials | Repaired Corrupted Hacking Suite 788 | -10/Materials | Repaired Corrupted Datajack 864 | -10/Materials | Discovered new exit (range 7) 1251 | -10/Materials | Discovered new exit (range 8) 1251 | -10/Materials | Discovered new exit (range 7) 2008 | -10/Materials | Discovered new exit (range 10) 2059 | -10/Materials | Central database locked down 2258 | -10/Materials | Discovered new exit (range 6) 2311 | -10/Materials | Entered Mines 2358 | -10/Mines | Lost 3 parts (1p2w) 2446 | -10/Mines | Learned location of 1 exit from Materials 2597 | -10/Mines | Core integrity fell below 50% 2645 | -10/Mines | Lost 5 parts (2p1n1u1w) 2687 | -10/Mines | Discovered new exit (range 10) 2890 | -10/Mines | Found the Drone Emporium 2905 | -10/Mines | Found Prototype Device 3124 | -10/Mines | Build established: Scavenger-Mutant 3129 | -10/Mines | Core integrity fell below 20% 3230 | -10/Mines | Discovered new exit (range 6) 3238 | -10/Mines | Entered Materials 3238 | -9/Materials | Accompanied by 1 ally 3238 | -9/Materials | Evolved 2 slots: Utility x2 3238 | -9/Materials | Identified Bomb Drone Bay 3239 | -9/Materials | Identified exit to Materials 3243 | -9/Materials | Led the pair of lost Derelicts to an unsafe place 3862 | -9/Materials | Repaired Imp. Ion Engine 3925 | -9/Materials | Discovered exit to Materials (range 3) 4127 | -9/Materials | Discovered new exit (range 7) 4855 | -9/Materials | Build established: Mutant 5234 | -9/Materials | Central database locked down 5701 | -9/Materials | Discovered new exit (range 12) 5778 | -9/Materials | Discovered new exit (range 16) 5805 | -9/Materials | Build established: Scavenger-Mutant 6710 | -9/Materials | Discovered exit to Materials (range 5) 7001 | -9/Materials | Entered another Materials area 7001 | -8/Materials | Evolved 2 slots: Utility x2 8060 | -8/Materials | Discovered new exit (range 5) 8265 | -8/Materials | Repaired Imp. Treads 8817 | -8/Materials | Build established: Mutant 9119 | -8/Materials | Discovered new exit (range 12) 9193 | -8/Materials | Build established: Scavenger-Mutant 9758 | -8/Materials | Identified exit to Garrison 9760 | -8/Materials | Entered Garrison 9852 | -8/Garrison | Triggered checkpoint 9863 | -8/Garrison | Triggered checkpoint 9922 | -8/Garrison | Lost 8 parts (2p2n2u2w) 10015 | -8/Garrison | Discovered new exit (range 10) 10056 | -8/Garrison | Triggered checkpoint 10138 | -8/Garrison | Triggered checkpoint 10478 | -8/Garrison | Discovered new exit (range 10) 10561 | -8/Garrison | Discovered new exit (range 26) 10561 | -8/Garrison | Discovered new exit (range 65) 10561 | -8/Garrison | Discovered new exit (range 31) 10561 | -8/Garrison | Discovered new exit (range 67) 10728 | -8/Garrison | Core integrity fell below 50% 10758 | -8/Garrison | Core integrity fell below 20% 10779 | -8/Garrison | Destroyed by G-47 Trooper with Particle Gun Last Messages --------------- 10725_ Imp. Heat Sink destroyed. 10725_ Hacking Suite destroyed. 10727_ The unstable cave ceiling collapses. 10729_ EM Pulse Cannon destroyed. 10734_ D-53 Grenadier misfires. 10736_ Lgt. Treads destroyed. 10743_ D-53 Grenadier destroyed. 10747_ ECM Suite destroyed. 10754_ Acquired 15 matter. 10755_ Critical hit (Burn: +37). 10757_ G-47 Trooper destroyed. 10761_ Rnf. Ion Engine destroyed. 10763_ Adv. Treads destroyed. 10767_ Critical hit (Burn: +37). 10769_ Beam Rifle destroyed. 10771_ Lgt. Ion Engine destroyed. 10771_ Critical hit (Burn: +37). 10779_ G-50 Soldier heat damages Carbon-fiber Leg. 10779_ Lgt. Ion Engine destroyed. Map ----- +----------------------------------------------------+ | ????????## # #??????# #???????# #############? | | ????????###### #??????# #???????# #????????????? | | ############## ########+##??????#++############## | | #??????# | | #"""########## #??????# | | # #????????# ######## #??????# ############## | | ##+##????????# ######## #??????# #????????????? | | ?# #?????????# ## "^^#??????# #????????????? | | ?# ########### ## ##### #??????# #????????????? | | ?# + + #???# #??????# #????????????? | | ?# ########### ## ##### ######## #????????????? | | ?# #?????????# ## # ## ##CC ## #???????#####? | | ##+##????????# ## ## ## ##??????# #? | | # #????????# ## ########"""## | | #"""########## ^ | | ^^ | | ################ ## ## ############# | | ???????????????# # ### # ## ###????????#" | | ???????????????# # " #????????## | | ???????????????###### " #?????????? | | ????????????????????# " #?????????? | | ??????????????????### " #?????????? | | ??????????????????# ### g # ## ###?????????? | | ????????????####### g # ## ############# | | ????????????# = | | ????????????#=! *%@%! #### | | ????????????# ##### ! ####+## #??? | | ????????????#*%#???# # # ## ##??# ## #??? | | ????????????#==#???#### # i ## #???# ## #??? | | ????????????#!%#??????# ####### #???# ## #### | | ????????????# *####### ?????# #???# + + | | ????????????# + #?????# ##### ## #### | | ????????????# ######### ###?????# + ## #??? | | ????????????# #???????##????????# ######## #??? | | ???????????## #?????????????????# ######## #??? | | ???????????#T #?????????????????# ^ #### | | ???########## #?????????????????# ^ | | ???# ^" ####??????????????##+######## #### | | ???# ^^%" #???????????????# #??????# #??? | | ???# < #####!#### #???????????????# #??????# #??? | | ???# #???#/#??# #???????????????# #??????# #??? | | ???#####???#^#??# #???#######?????# #??????# #??? | | ???????????#^#??# #???#"""""#???### ###????# #??? | | ???????????#%####"###### ##???#] !###### #### | | ???????????#= != #???#] !+ + | | ???????????####### ###### #???#] !###### | | ?????????????????# #????# #???#]] !!#????####### | | ?????????????????#####????# #???#######??????????? | | ??????????????????????????# #????????????????????? | | ??????????????????????????# ##???????????????????? | +----------------------------------------------------+ Best States ------------- Heat Dissipation 45 Energy Generation 14 Energy Capacity 280 Matter Stores 300 Matter Capacity 300 Sight Range 16 Terrain Scan Range 16 Terrain Scan Density 110 ECM Strength 1 Additional Mass Support 6 Armor Coverage 225 Evasion (%) 40 Recoil Reduction 2 Offensive Hacking 10 Item Schematics ----------------- Imp. Medium Laser | -9/Materials | Scanalyzed Robot Schematics ------------------ None Fabricated ------------ Nothing Repaired ---------- Hacking Suite | 99% | -10/Materials | Corrupted Datajack | 80% | -10/Materials | Corrupted Imp. Ion Engine | 37% | -9/Materials Imp. Treads | 2% | -8/Materials Studied --------- None Alien Tech Used ----------------- None Achievements -------------- A New Friend Omniscient Cartographer Challenges ------------ None Game ------ Seed GreatPointyReconfigurator Manual? 0 Play Time 01:48:37 Cumulative 34.9 hours Start 2026.03.31 @ 17:46:18 End 2026.03.31 @ 19:37:10 Sessions 1 Manual Loads 0 Difficulty Rogue Special Mode None Game No. 39 Rogue 39 Adventurer 0 Explorer 0 Win Type - Total 0 Types 0/0/0/0/0/0/0/0/0/0 Lore% 29 Gallery% 24 Achievement% 18 Wizard Run 0 Options --------- Layout 1 ASCII 0 Keyboard 1 Movement Vi Keybinds 0 Fullscreen 2 Font 24/Smallcaps Map View 50x35 Zoom Use 0% Tactical HUD 1 Map Filters NONE Filters NONE Steam 1 RUN: 32ce3eb2-a025-4eb2-9e3d-82f61508ffbb